[Event "Ostravsky Konik FIDE-A 2024"]
[Site "Ostrava"]
[Date "2024.05.03"]
[Round "7.2"]
[White "Meers, Hubert"]
[Black "Goluch, Piotr"]
[Result "1-0"]
[ECO "B48"]
[WhiteElo "2250"]
[BlackElo "2325"]
[Annotator "TA"]
[PlyCount "77"]
[EventDate "2024.04.26"]
[EventType "swiss"]
[EventCountry "CZE"]
[SourceTitle "playchess.com"]
[Source "ChessBase"]
[SourceQuality "1"]
[TimeControl "40/5400+30:1800+30"]

{[%evp 11,77,35,41,35,45,8,21,16,28,17,27,-58,50,77,66,71,63,68,62,62,76,59,208,204,191,205,192,150,245,253,327,336,345,211,203,194,204,194,245,258,272,254,276,256,273,267,277,281,243,219,206,216,222,219,203,174,200,161,369,369,383,393,474,466,693,314,1909,1755]} 1. e4 {[%emt 0:02:35]} c5 {[%emt 0:00:02]} 2. Nf3 {[%emt 0:00:27]} e6 {[%emt 0:00:05]} 3. d4 {[%emt 0:00:37]} cxd4 {[%emt 0:00:05]} 4. Nxd4 {[%emt 0:00:03]} Nc6 {[%emt 0:00:06]} 5. Nc3 {[%emt 0:00:07]} Qc7 {[%emt 0:00:18]} 6. Be3 {[%emt 0:00:04]} a6 {[%emt 0:00:04]} 7. Qf3 {[%emt 0:00:31]} Bd6 {[%emt 0:00:06]} 8. Nxc6 {[%emt 0:01:26]} bxc6 {[%emt 0:00:34]} 9. O-O-O {[%emt 0:06:25] The position is equal.} Be5 {[%emt 0:06:45][%cal Oa8b8]} 10. Bd4 {[%emt 0:10:17]} Nf6 {[%emt 0:00:43]} 11. Na4 {[%emt 0:07:30] [#]} ({White should play} 11. Bxe5 $11 Qxe5 12. Qg3 Qxg3 13. hxg3) 11... c5 {[%emt 0:22:58]} 12. Bxe5 $14 {[%emt 0:06:06]} (12. Nxc5 $2 Bxd4 (12... Bxh2 $2 13. e5 $18) 13. Rxd4 Qxc5 $19) 12... Qxe5 {[%emt 0:00:05]} 13. Nb6 {[%emt 0:00:13]} Rb8 {[%emt 0:01:41]} 14. Nc4 $36 {[%emt 0:00:05][%mdl 2048] White has the initiative. Active counter play!} Qg5+ {[%emt 0:00:36]} 15. Kb1 {[%emt 0:01:22]} d5 {[%emt 0:04:00]} 16. exd5 {[%emt 0:07:00]} exd5 {[%emt 0:00:03] Loses the game.} (16... O-O $14) 17. h4 $18 {[%emt 0:00:36]} Qg4 {[%emt 0:05:16] ...Qxf3 would now be deadly.} 18. Qe3+ {[%emt 0:01:35]} Qe6 {[%emt 0:07:10]} 19. Qg3 {[%emt 0:11:19]} Ra8 {[%emt 0:16:49] [#]} (19... Rb4 $16 {was worth a try.}) 20. Qc7 $1 {[%emt 0:05:06]} O-O {[%emt 0:07:55]} (20... Bd7 21. Nb6) 21. Nb6 {[%emt 0:00:04]} Ne4 {[%emt 0:00:05]} 22. Bc4 {[%emt 0:08:42]} (22. Nxa8 Nxf2 23. Bd3 Qg4 $18) (22. Rxd5 $2 Nd2+ 23. Rxd2 Qe1+) 22... dxc4 {[%emt 0:06:30]} 23. Nxa8 {[%emt 0:03:20] Strongly threatening Rd8.} Nxf2 {[%emt 0:01:37]} 24. Rhe1 {[%emt 0:06:11]} Nxd1 {[%emt 0:00:32]} (24... Qf6 $142 25. Rd2 Ne4 (25... c3 $2 26. Rde2 $18)) 25. Rxe6 {[%emt 0:00:03]} Bxe6 {[%emt 0:00:05]} 26. Nb6 {[%emt 0:00:03]} Ne3 {[%emt 0:00:05]} 27. Qxc5 {[%emt 0:01:16]} Rd8 {[%emt 0:00:04][%cal Rd8d1]} 28. b3 {[%emt 0:01:24]} (28. Qxe3 $2 Rd1+ $17) 28... cxb3 {[%emt 0:00:20]} 29. axb3 {[%emt 0:00:08]} (29. Qxe3 $2 {loses.} bxa2+ (29... Rd1+ $2 30. Kb2 $19) 30. Kb2 Rd1 $19) 29... Nf5 {[%emt 0:08:53][%cal Be3f5,Bf5h4,Bh4g6][%mdl 32]} 30. g4 {[%emt 0:02:33]} Nxh4 {[%emt 0:01:45]} 31. Qe7 {[%emt 0:00:36][%cal Re7d8]} Rd1+ {[%emt 0:00:05]} 32. Kb2 {[%emt 0:00:03][%cal Re7e8][%mdl 1024] White has strong compensation.} Ng6 {[%emt 0:00:03]} 33. Qe8+ {[%emt 0:00:02]} Nf8 {[%emt 0:00:04]} 34. c4 {[%emt 0:00:34][%cal Bc2c4,Bc4c5,Bc5c6][%mdl 32]} ({Resist} 34. Nc8 g6) 34... g5 $2 {[%emt 0:05:33]} (34... Rd2+ {might work better.} 35. Ka3 h6) 35. c5 {[%emt 0:01:29]} Rd3 {[%emt 0:00:05]} 36. Nc4 {[%emt 0:00:03]} Rd5 {[%emt 0:01:44]} 37. c6 {[%emt 0:00:45]} Rc5 {[%emt 0:00:03]} (37... Bxg4 $142 38. Ne3 Rd2+ 39. Kc1 Re2) 38. Kc3 {[%emt 0:00:05]} (38. Nd6 $142) 38... Bxc4 $2 {[%emt 0:00:10]} (38... Bd5 39. Kb2 Bxc4 40. bxc4 Rxc4) 39. bxc4 {[%emt 0:00:11] Weighted Error Value: White=0.31/Black=0.47.  Mistake:       	White=2     	Black=7      Inaccurate:     	White=2     	---        OK:         	White=13    	Black=12     Best:        	White=6     	Black=2      Strong:       	White=1     	---} 1-0

[Event "Ostravsky Konik FIDE-A 2024"]
[Site "Ostrava"]
[Date "2024.05.03"]
[Round "7.3"]
[White "Chkhaidze, Nikoloz"]
[Black "Decuigniere, Tom"]
[Result "1/2-1/2"]
[ECO "D02"]
[WhiteElo "2268"]
[BlackElo "2401"]
[Annotator "TA"]
[PlyCount "66"]
[EventDate "2024.04.26"]
[EventType "swiss"]
[EventCountry "CZE"]
[SourceTitle "playchess.com"]
[Source "ChessBase"]
[SourceQuality "1"]
[TimeControl "40/5400+30:1800+30"]

{[%evp 10,66,33,9,32,18,21,27,29,22,18,31,50,60,59,54,47,36,56,56,58,45,89,81,119,3,64,69,55,62,64,64,82,74,90,40,95,90,145,85,77,47,62,88,154,153,559,562,520,0,0,0,0,0,0,0,0,0,0]} 1. Nf3 {[%emt 0:00:03]} d5 {[%emt 0:01:06]} 2. g3 {[%emt 0:00:09]} Nf6 {[%emt 0:00:14]} 3. Bg2 {[%emt 0:00:01]} e6 {[%emt 0:00:15]} 4. O-O {[%emt 0:00:12]} Bd6 {[%emt 0:00:44]} 5. c4 {[%emt 0:00:25]} O-O {[%emt 0:00:15]} 6. d4 {[%emt 0:00:02]} h6 {[%emt 0:00:26]} 7. Qc2 {[%emt 0:00:11]} b6 {[%emt 0:02:23]} 8. cxd5 {[%emt 0:00:14]} exd5 {[%emt 0:00:26] White has an edge.} 9. Nc3 {[%emt 0:00:03]} Re8 {[%emt 0:04:15]} 10. Rd1 {[%emt 0:00:13]} a5 {[%emt 0:08:58] [#]} 11. Ne5 $1 {[%emt 0:02:14][%cal Bf3e5,Be5d3,Bd3f4][%mdl 32]} Bb7 {[%emt 0:01:24][%cal Ob8c6]} 12. Bf4 {[%emt 0:03:34]} Nbd7 {[%emt 0:08:40]} 13. Nd3 {[%emt 0:13:11]} Ne4 {[%emt 0:07:22]} 14. Bxd6 {[%emt 0:00:54]} cxd6 {[%emt 0:00:14]} 15. Nf4 {[%emt 0:02:19]} Ndf6 {[%emt 0:04:43] [#]} 16. Nfxd5 $1 {[%emt 0:04:23]} Rc8 {[%emt 0:12:08]} (16... Nxd5 17. Nxe4) 17. Qb3 {[%emt 0:10:55]} (17. Bxe4 Nxe4 18. Qd3 Qd7) (17. Nxf6+ $16 Qxf6 18. Bxe4 Bxe4 19. Qb3 (19. Nxe4 Qg6 $16)) 17... a4 {[%emt 0:05:32]} 18. Nxf6+ $1 $14 {[%emt 0:01:45]} (18. Qxa4 $2 Bxd5 19. Nxd5 Nxd5 $19) 18... Qxf6 {[%emt 0:00:07]} 19. Nxe4 {[%emt 0:00:10]} (19. Qxa4 $2 Qxf2+ 20. Kh1 Nxg3+ 21. hxg3 Qxg2#) 19... Bxe4 {[%emt 0:00:29]} 20. Qb5 {[%emt 0:00:29]} (20. Qxb6 $2 Bxg2 21. Kxg2 Rxe2 $19) 20... Bxg2 {[%emt 0:02:07]} 21. Kxg2 {[%emt 0:00:05][%cal Oa1c1]} Qe6 {[%emt 0:02:00]} 22. Rac1 {[%emt 0:08:00]} (22. Qxa4 $6 Qd5+ 23. e4 Qxe4+ 24. Kg1 Rc2 $15) ({White should try} 22. Rd2 $16) 22... Qxa2 {[%emt 0:03:58]} (22... Qe4+ $14 23. Kg1 Rxc1 24. Rxc1 Qxe2 25. Qxa4 b5) 23. e3 $16 {[%emt 0:52:28]} (23. Qxb6 Qd5+ 24. Kg1 Rb8 $17) 23... Red8 {[%emt 0:34:14] [#]} (23... Rf8 $142) 24. Ra1 {[%emt 0:00:00] White is more active.} (24. Qxb6 Qd5+ 25. Kg1 h5 $14) ({Better is} 24. d5 $1) 24... Qe6 {[%emt 0:00:00]} 25. Rxa4 {[%emt 0:00:00][%cal Od4d5]} Rc2 $1 {[%emt 0:00:00]} 26. Qxb6 {[%emt 0:00:00]} Rdc8 {[%emt 0:00:00] [#]} (26... Qe4+ $142 27. Kg1 Rdc8) 27. d5 $1 {[%emt 0:00:00]} Rxf2+ $2 {[%emt 0:00:00]} (27... Qe5 $16) 28. Kxf2 $18 {[%emt 0:00:00]} Qh3 {[%emt 0:00:00] ...Rc2+ would now be deadly.} 29. Rad4 $2 {[%emt 0:00:00]} (29. Kg1 {leads to mate.} Rc2 30. Qd8+ Kh7) ({White must play} 29. Qxd6 $18 Rc2+ 30. Kf3 (30. Ke1 {is a self mate.} Qxh2 31. Ra8+ Kh7)) 29... Qxh2+ $11 {[%emt 0:00:00] The position is equal.} 30. Kf3 {[%emt 0:00:00]} Qh5+ {[%emt 0:00:00]} 31. Kf2 {[%emt 0:00:00]} Qh2+ {[%emt 0:00:00]} 32. Kf3 {[%emt 0:00:09]} Qh5+ {[%emt 0:00:00]} 33. Kf2 {[%emt 0:01:14][%cal Od4d2] Threatens to win with R4d2!} Qh2+ {[%emt 0:00:00] Weighted Error Value: White=0.26 (precise) /Black=0.44.  Loses game:     	---       	Black=1      Missed win:     	White=1     	---        Mistake:       	White=3     	Black=4      Inaccurate:     	White=1     	Black=2      OK:         	White=8     	Black=9      Best:        	---       	Black=1      Strong:       	White=2     	Black=1      Brilliant:      	White=1     	---} 1/2-1/2

[Event "Ostravsky Konik FIDE-A 2024"]
[Site "Ostrava"]
[Date "2024.05.03"]
[Round "7.4"]
[White "Zdybel, Przemyslaw"]
[Black "Romanishin, Oleg M"]
[Result "1/2-1/2"]
[ECO "C84"]
[WhiteElo "2264"]
[BlackElo "2372"]
[Annotator "TA"]
[PlyCount "57"]
[EventDate "2024.04.26"]
[EventType "swiss"]
[EventCountry "CZE"]
[SourceTitle "playchess.com"]
[Source "ChessBase"]
[SourceQuality "1"]
[TimeControl "40/5400+30:1800+30"]

{[%evp 12,57,37,9,4,23,24,27,32,0,29,9,29,25,31,24,29,8,26,29,118,45,44,51,56,55,62,30,47,54,68,49,61,51,53,55,58,45,45,45,52,0,45,0,0,0,0,0]} 1. e4 {[%emt 0:00:06]} e5 {[%emt 0:00:26]} 2. Nf3 {[%emt 0:00:25]} Nc6 {[%emt 0:00:37]} 3. Bb5 {[%emt 0:00:11]} a6 {[%emt 0:00:05]} 4. Ba4 {[%emt 0:00:14]} Nf6 {[%emt 0:00:07]} 5. O-O {[%emt 0:00:09]} Be7 {[%emt 0:00:09]} 6. d3 {[%emt 0:00:20]} d6 {[%emt 0:02:09]} 7. c4 {[%emt 0:08:02]} O-O {[%emt 0:02:18]} 8. h3 {[%emt 0:05:27]} Na7 {[%emt 0:06:58]} 9. Nc3 {[%emt 0:02:56]} c5 {[%emt 0:00:15] White has an edge.} 10. Ne1 {[%emt 0:14:18]} Nc6 {[%emt 0:04:24]} 11. f4 {[%emt 0:02:28]} exf4 {[%emt 0:02:38]} 12. Bxf4 {[%emt 0:03:24]} Ne8 {[%emt 0:06:22][%cal Bf6e8,Be8c7,Bc7e6][%mdl 32]} 13. Nd5 {[%emt 0:07:36]} Nc7 {[%emt 0:02:27]} 14. Nf3 {[%emt 0:06:05]} Ne6 {[%emt 0:04:01]} 15. Be3 {[%emt 0:02:55]} Bf6 {[%emt 0:15:14] [#]} (15... Rb8 $11 {remains equal.}) 16. Qd2 {[%emt 0:04:37]} ({White should try} 16. Nxf6+ $1 $16 Qxf6 17. Nd4) 16... Bd4 {[%emt 0:01:42]} 17. Nxd4 {[%emt 0:00:24]} Ncxd4 {[%emt 0:00:25]} 18. Bd1 {[%emt 0:01:54]} b5 {[%emt 0:06:14]} 19. b3 {[%emt 0:02:43]} a5 {[%emt 0:03:26]} 20. Bg4 {[%emt 0:02:38]} b4 {[%emt 0:05:01]} 21. Bxe6 {[%emt 0:07:54]} Nxe6 {[%emt 0:07:09]} 22. Qf2 {[%emt 0:01:56] White is much more active.} Bb7 {[%emt 0:07:40]} 23. a4 {[%emt 0:01:43]} f6 {[%emt 0:08:28]} 24. Qg3 {[%emt 0:05:03]} Ra7 {[%emt 0:00:29]} 25. Qg4 {[%emt 0:03:02]} Bc8 {[%emt 0:01:12]} 26. Qg3 {[%emt 0:02:26]} (26. Qh4 $14) 26... Raf7 {[%emt 0:00:17]} 27. Bf4 {[%emt 0:05:12]} Nxf4 {[%emt 0:00:57]} 28. Rxf4 {[%emt 0:00:23]} Qe8 {[%emt 0:02:00]} 29. Raf1 {[%emt 0:02:45] Weighted Error Value: White=0.15 (very precise) /Black=0.13 (very precise) .  Mistake:       	White=2     	Black=1      Inaccurate:     	White=3     	Black=2      OK:         	White=9     	Black=9} 1/2-1/2

[Event "Ostravsky Konik FIDE-A 2024"]
[Site "Ostrava"]
[Date "2024.05.03"]
[Round "7.5"]
[White "Sernecki, Franciszek"]
[Black "Jafarli, Babak"]
[Result "1-0"]
[ECO "A80"]
[WhiteElo "2342"]
[BlackElo "2187"]
[Annotator "ChessBase"]
[PlyCount "45"]
[EventDate "2024.04.26"]
[EventType "swiss"]
[EventCountry "CZE"]
[SourceTitle "playchess.com"]
[Source "ChessBase"]
[SourceQuality "1"]
[TimeControl "40/5400+30:1800+30"]

1. d4 {[%emt 0:00:46]} f5 {[%emt 0:00:07]} 2. Bg5 {[%emt 0:00:15]} Nf6 {[%emt 0:02:57]} 3. Bxf6 {[%emt 0:00:17]} exf6 {[%emt 0:00:01]} 4. e3 {[%emt 0:00:28]} d5 {[%emt 0:01:58]} 5. c4 {[%emt 0:00:47]} dxc4 {[%emt 0:03:50]} 6. Bxc4 {[%emt 0:02:12]} Bd6 {[%emt 0:01:50]} 7. Nc3 {[%emt 0:06:13]} c6 {[%emt 0:02:54]} 8. Nge2 {[%emt 0:01:00]} Qe7 {[%emt 0:00:17]} 9. O-O {[%emt 0:19:09]} b5 {[%emt 0:05:12]} 10. Bb3 {[%emt 0:02:00]} Na6 {[%emt 0:17:45]} 11. Nf4 {[%emt 0:11:48]} g6 {[%emt 0:01:34]} 12. Qf3 {[%emt 0:13:51]} Bb7 {[%emt 0:03:55]} 13. d5 {[%emt 0:01:52]} Rc8 {[%emt 0:00:45]} 14. Rac1 {[%emt 0:08:02]} Nc5 {[%emt 0:07:06]} 15. dxc6 {[%emt 0:02:43]} Bxc6 {[%emt 0:00:12]} 16. Bd5 {[%emt 0:03:06]} Bd7 {[%emt 0:02:47]} 17. b4 {[%emt 0:06:47]} Bxf4 {[%emt 0:00:14]} 18. exf4 {[%emt 0:04:46]} Ne6 {[%emt 0:01:36]} 19. Nxb5 {[%emt 0:04:32]} O-O {[%emt 0:12:24]} 20. Nd4 {[%emt 0:03:14]} Rxc1 {[%emt 0:02:10]} 21. Rxc1 {[%emt 0:00:13]} Kg7 {[%emt 0:02:06]} 22. Qe3 {[%emt 0:01:51]} Re8 {[%emt 0:00:37]} 23. Re1 {[%emt 0:00:56]} 1-0

[Event "Ostravsky Konik FIDE-A 2024"]
[Site "Ostrava"]
[Date "2024.05.03"]
[Round "7.6"]
[White "Swicarz, Maciej"]
[Black "Rudolf, Michal"]
[Result "1-0"]
[ECO "C11"]
[WhiteElo "2251"]
[BlackElo "2268"]
[Annotator "NA RC"]
[PlyCount "73"]
[EventDate "2024.04.26"]
[EventType "swiss"]
[EventCountry "CZE"]
[SourceTitle "playchess.com"]
[Source "ChessBase"]
[SourceQuality "1"]
[TimeControl "40/5400+30:1800+30"]

1. e4 {[%emt 1:31:00]} e6 {[%emt 1:31:00]} 2. d4 {[%emt 0:00:30]} d5 {[%emt 0:00:30]} 3. Nc3 {[%emt 0:00:30]} Nf6 {[%emt 0:00:30]} 4. e5 {[%emt 0:00:30]} Nfd7 {[%emt 0:00:30]} 5. f4 {[%emt 0:00:30]} c5 {[%emt 0:00:30]} 6. Nf3 {[%emt 0:00:30]} Nc6 {[%emt 0:00:30]} 7. Be3 {[%emt 0:00:30]} Be7 {[%emt 0:00:30]} 8. Qd2 {[%emt 0:00:30]} O-O {[%emt 0:00:30]} 9. dxc5 {[%emt 0:00:30]} Bxc5 {[%emt 0:00:30]} 10. Nd4 {[%emt 0:00:30]} Qb6 {[%emt 0:00:30]} 11. Na4 Qb4 12. Nxc5 Qxd2+ 13. Kxd2 Nxc5 14. Nxc6 Ne4+ 15. Kc1 bxc6 16. Bd3 f5 17. exf6 Nxf6 18. g3 {[%emt 0:04:00]} a5 {[%emt 0:04:00]} 19. Re1 {[%emt 0:00:30]} Ba6 {[%emt 0:00:30]} 20. Bd4 {[%emt 0:00:30]} Kf7 {[%emt 0:00:30]} 21. Kd2 {[%emt 0:00:30]} Rfc8 {[%emt 0:00:30]} 22. f5 {[%emt 0:00:30]} exf5 {[%emt 0:00:30]} 23. Bxf5 {[%emt 0:00:30]} Re8 {[%emt 0:00:30]} 24. Bxf6 {[%emt 0:00:30]} Kxf6 {[%emt 0:00:30]} 25. Bd7 {[%emt 0:00:30]} Rxe1 {[%emt 0:00:30]} 26. Rxe1 {[%emt 0:00:30]} Bb5 {[%emt 0:00:30]} 27. Re6+ {[%emt 0:00:30]} Kf7 28. Re3 Ra7 29. Bf5 h6 30. Kc3 {[%emt 0:01:30]} Kf6 {[%emt 0:02:00]} 31. g4 {[%emt 0:00:30]} c5 {[%emt 0:00:30]} 32. Re6+ {[%emt 0:00:30]} Kf7 {[%emt 0:00:30]} 33. Rb6 {[%emt 0:00:30]} d4+ {[%emt 0:00:30]} 34. Kd2 {[%emt 0:00:30]} Bf1 {[%emt 0:00:30]} 35. Rc6 {[%emt 0:00:30]} Rb7 {[%emt 0:00:30]} 36. b3 {[%emt 0:00:30]} Re7 {[%emt 0:00:30]} 37. Bg6+ {[%emt 0:00:30]} 1-0

[Event "Ostravsky Konik FIDE-A 2024"]
[Site "Ostrava"]
[Date "2024.05.04"]
[Round "8.1"]
[White "Meers, Hubert"]
[Black "Nguyen, Piotr"]
[Result "0-1"]
[ECO "A45"]
[WhiteElo "2250"]
[BlackElo "2398"]
[Annotator "TA"]
[PlyCount "116"]
[EventDate "2024.04.26"]
[EventType "swiss"]
[EventCountry "CZE"]
[SourceTitle "playchess.com"]
[Source "ChessBase"]
[SourceQuality "1"]
[TimeControl "40/5400+30:1800+30"]

{[%evp 19,116,0,0,-9,0,-40,-30,-37,-29,-52,-29,-50,-61,-74,-66,-82,-65,-115,-90,-105,-85,-127,-133,-137,-70,-80,-85,-85,-79,-87,-76,-90,-85,-76,-78,-87,-73,-70,-70,-79,-76,-97,-72,-79,0,0,0,0,0,0,0,0,0,0,0,0,0,0,0,0,0,0,0,-106,0,0,0,0,0,0,0,-33,-33,-42,0,0,0,-745,-661,-960,-873,-1420,-1359,-29975,-29976,-29967,-29955,-12798,-3203,-6007,-5427,-29983,-29977,-29975,-29978,-29979,-29980,-29979,-29980]} 1. d4 {[%emt 0:00:02]} Nf6 {[%emt 0:00:56]} 2. Bg5 {[%emt 0:00:13]} g6 {[%emt 0:00:16]} 3. Bxf6 {[%emt 0:00:06]} exf6 {[%emt 0:00:03]} 4. g3 {[%emt 0:00:18]} d5 {[%emt 0:00:17]} 5. Bg2 {[%emt 0:00:05]} c6 {[%emt 0:00:14]} 6. e3 {[%emt 0:00:29] A45: Trompowsky Attack.} h5 {[%emt 0:00:15]} 7. Nf3 {[%emt 0:09:18]} Nd7 $146 {[%emt 0:06:15]} ({Predecessor:} 7... Bd6 8. Nbd2 Be6 9. Qe2 g5 10. h4 Nd7 11. O-O g4 12. Ne1 f5 13. c4 Nf6 14. cxd5 Nxd5 {1-0 Dardha,D (2606)-Maksimovic,B (2486) Titled Tuesday intern op 06th Dec Late blitz 2022 (6)}) 8. Nbd2 {[%emt 0:03:58]} Nb6 {[%emt 0:01:12]} 9. O-O {[%emt 0:03:21]} Be6 {[%emt 0:02:40]} 10. e4 {[%emt 0:05:19]} Be7 {[%emt 0:07:42]} 11. Re1 {[%emt 0:15:02]} O-O {[%emt 0:00:22]} 12. e5 {[%emt 0:01:02]} Nd7 {[%emt 0:05:09]} 13. c3 {[%emt 0:03:15]} a5 {[%emt 0:02:50]} 14. a4 {[%emt 0:03:20]} Kg7 {[%emt 0:15:50]} (14... h4 $5) 15. Bf1 {[%emt 0:08:45]} h4 {[%emt 0:03:01]} 16. Nxh4 {[%emt 0:01:23]} fxe5 {[%emt 0:00:12]} 17. Ng2 {[%emt 0:00:03]} exd4 {[%emt 0:10:32]} 18. Nf4 {[%emt 0:02:22]} (18. cxd4 $15 Bb4 19. Re3) 18... Bf5 {[%emt 0:00:12]} 19. cxd4 {[%emt 0:00:26]} Bd6 {[%emt 0:03:19]} 20. Nd3 {[%emt 0:07:06]} Qf6 {[%emt 0:02:30]} 21. Nb3 {[%emt 0:00:51]} Be4 {[%emt 0:05:19]} (21... Rh8 $17 {Threatens to win with ...Rh6.} 22. Qf3 g5) 22. Bg2 $15 {[%emt 0:01:21]} Rfe8 {[%emt 0:07:02]} 23. Bxe4 {[%emt 0:05:14]} dxe4 {[%emt 0:01:46]} 24. Ndc5 {[%emt 0:00:04]} Bxc5 {[%emt 0:01:06]} 25. Nxc5 {[%emt 0:00:03]} Nxc5 {[%emt 0:00:18]} 26. dxc5 {[%emt 0:00:04]} Rad8 {[%emt 0:00:40]} 27. Qc2 {[%emt 0:00:18]} Qe5 {[%emt 0:04:53]} 28. Ra3 {[%emt 0:01:41]} Rd5 {[%emt 0:00:55]} 29. Rc3 {[%emt 0:00:48]} f5 {[%emt 0:00:47]} 30. Rd1 {[%emt 0:03:53]} Red8 {[%emt 0:02:02]} 31. Rxd5 {[%emt 0:00:06]} cxd5 {[%emt 0:01:43]} (31... Rxd5 $17 32. Rb3 Qd4 (32... Rxc5 33. Rxb7+ Kf6 34. Qd2 $11) (32... Rd7 33. h4 $17)) 32. Rb3 $11 {[%emt 0:07:06]} Rd7 {[%emt 0:04:44]} 33. c6 {[%emt 0:03:03]} bxc6 {[%emt 0:00:04]} 34. Qxc6 {[%emt 0:00:02]} Rc7 {[%emt 0:01:19]} 35. Rb7 {[%emt 0:02:04]} Rxb7 {[%emt 0:00:04]} (35... Rf7 {keeps more tension.} 36. Rb6 Rf6 37. Qd7+ Rf7) 36. Qxb7+ {[%emt 0:00:07]} Kh6 {[%emt 0:00:10]} 37. Qb5 {[%emt 0:00:23]} e3 {[%emt 0:03:49]} 38. fxe3 {[%emt 0:02:00]} Qxe3+ {[%emt 0:00:06]} 39. Kg2 {[%emt 0:00:04]} d4 {[%emt 0:02:17]} 40. Qb8 {[%emt 0:03:04]} Qe4+ {[%emt 0:02:10]} 41. Kh3 {[%emt 0:35:40] [#]} (41. Kf2 $11 {keeps the balance.}) 41... Qg4+ {[%emt 0:32:05]} (41... g5 $1 $17 {[%cal Rg5g4] ( -> ...g4+)} 42. Qh8+ Kg6 43. Qg8+ Kf6 44. Qd8+ Ke5 45. Qh8+ (45. Qxa5+ $2 Ke6 $19) 45... Kd5 46. Qg8+ Kc5 47. Qxg5 Kb4) 42. Kg2 $11 {[%emt 0:00:04]} Qe2+ {[%emt 0:00:05]} 43. Kg1 {[%emt 0:00:06]} Qe3+ {[%emt 0:00:00]} 44. Kg2 {[%emt 0:00:00]} g5 {[%emt 0:00:00]} 45. Qh8+ {[%emt 0:00:00]} Kg6 {[%emt 0:00:00]} 46. Qg8+ {[%emt 0:00:00]} Kf6 {[%emt 0:00:00]} 47. Qf8+ $1 {[%emt 0:00:00]} Ke6 {[%emt 0:00:00]} 48. Qc8+ $2 {[%emt 0:00:00][%mdl 8192] [#]} (48. b3 $11) 48... Ke5 $1 $19 {[%emt 0:00:00]} 49. Qc5+ {[%emt 0:00:00]} Ke4 {[%emt 0:00:00]} 50. Qc2+ {[%emt 0:00:00]} Qd3 {[%emt 0:00:00]} 51. Qc6+ {[%emt 0:01:11]} Ke3 {[%emt 0:00:00]} 52. Qf3+ {[%emt 0:11:20]} Kd2 {[%emt 0:00:00]} 53. Qf2+ {[%emt 0:00:00]} Kc1 {[%emt 0:00:00]} (53... Qe2 $142 54. g4 fxg4 55. Kg3 Qxf2+ 56. Kxf2 d3 57. Kg2 Ke3 58. Kg3 d2 59. Kxg4 Ke4 (59... d1=B+ $2 60. Kxg5 Bxa4 61. Kh6 $19) (59... d1=Q+ {gets mated.} 60. Kf5 Qd5+ 61. Kg6 Ke4 62. h3 Qe6+ 63. Kh7 Kf5 64. h4 Qe7+ 65. Kh8 gxh4 66. Kg8 Kf6 67. Kh8 Qg7#) 60. Kxg5 d1=Q (60... d1=B $2 61. h4 $19) 61. h4 Qd6 (61... Qxa4 62. h5 Qc6 63. h6 Ke5 64. h7 Qg2+ 65. Kh6 Kf5 66. h8=N Qg8 67. Kh5 Qxh8#) 62. h5 Qe6 63. b4 Ke5 (63... axb4 64. a5 Qf7 65. h6 Qf5+ 66. Kh4 Kf4 67. a6 Qg4#) 64. bxa5 Qg8+ (64... Qf6+ 65. Kg4 Qf2 66. Kg5 Qg3+ 67. Kh6 Kf6 68. Kh7 Qg7#) 65. Kh6 Kf6 66. a6 Qh8#) 54. Qe1+ $19 {[%emt 0:00:00]} Kc2 {[%emt 0:00:00]} 55. Qxa5 {[%emt 0:00:00]} Qe4+ {[%emt 0:00:00]} (55... Kxb2 56. Qb5+ Qb3 57. Qxb3+ Kxb3 58. a5 $11) 56. Kf2 {[%emt 0:00:00]} g4 {[%emt 0:01:31]} ({And not} 56... Kxb2 57. Qb4+ Kc2 58. Qc4+ Kd1 59. Qb3+ Kd2 (59... Kc1 60. a5 $11) 60. Qb2+ Kd3 61. a5 $11) 57. Qb5 {[%emt 0:00:00]} d3 {[%emt 0:01:44]} 58. Qc5+ {[%emt 0:00:00]} Kd1 {[%emt 0:00:36]} 0-1